[Event "*** Titled Tuesday Blitz"]
[Site "Chess.com"]
[Date "2020.04.28"]
[Round "7"]
[White "Marty435"]
[Black "MRBigtimer"]
[Result "0-1"]
[WhiteElo "2529"]
[BlackElo "2336"]
[TimeControl "180+1"]
[EndTime "11:19:03 PDT"]
[Termination "MRBigtimer won on time"]

1. e4 {[%clk 0:03:00.9]} 1... e5 {[%clk 0:02:59.3]} 2. Nf3 {[%clk 0:03:00.8]}
2... Nc6 {[%clk 0:02:59.4]} 3. Bb5 {[%clk 0:03:01.4]} 3... a6 {[%clk 0:02:58.8]}
4. Ba4 {[%clk 0:03:01.7]} 4... Nf6 {[%clk 0:02:58.1]} 5. d3 {[%clk 0:03:02.2]}
5... b5 {[%clk 0:02:57]} 6. Bb3 {[%clk 0:03:02.2]} 6... Bc5 {[%clk 0:02:57.5]}
7. c3 {[%clk 0:03:00.5]} 7... d5 {[%clk 0:02:53.8]} 8. exd5 {[%clk 0:02:58]}
8... Nxd5 {[%clk 0:02:53.7]} 9. O-O {[%clk 0:02:58.7]} 9... O-O {[%clk
0:02:52.9]} 10. Re1 {[%clk 0:02:55.5]} 10... Bg4 {[%clk 0:02:52.8]} 11. a4
{[%clk 0:02:48.4]} 11... b4 {[%clk 0:02:51.9]} 12. h3 {[%clk 0:02:41]} 12... Bh5
{[%clk 0:02:51]} 13. g4 {[%clk 0:02:19.9]} 13... Bg6 {[%clk 0:02:49.6]} 14. Bg5
{[%clk 0:02:13.9]} 14... f6 {[%clk 0:02:44.7]} 15. d4 {[%clk 0:02:08.2]} 15...
exd4 {[%clk 0:02:37.6]} 16. Nxd4 {[%clk 0:01:55.1]} 16... Bxd4 {[%clk
0:02:36.9]} 17. Be3 {[%clk 0:01:41.4]} 17... Bf7 {[%clk 0:02:23.5]} 18. Bxd4
{[%clk 0:01:39]} 18... Nxd4 {[%clk 0:02:23.1]} 19. Qxd4 {[%clk 0:01:38.7]} 19...
bxc3 {[%clk 0:02:23.4]} 20. Nxc3 {[%clk 0:01:38.1]} 20... Nxc3 {[%clk
0:02:23.1]} 21. Bxf7+ {[%clk 0:01:38]} 21... Rxf7 {[%clk 0:02:20.7]} 22. Qxd8+
{[%clk 0:01:32.6]} 22... Rxd8 {[%clk 0:02:20.3]} 23. bxc3 {[%clk 0:01:33.5]}
23... Rd3 {[%clk 0:02:17.6]} 24. Re8+ {[%clk 0:01:20.1]} 24... Rf8 {[%clk
0:02:16.9]} 25. Re3 {[%clk 0:01:19.1]} 25... Rxe3 {[%clk 0:02:15.3]} 26. fxe3
{[%clk 0:01:20]} 26... Rd8 {[%clk 0:02:12.2]} 27. Kf2 {[%clk 0:01:19.8]} 27...
Rd2+ {[%clk 0:02:10.6]} 28. Kf3 {[%clk 0:01:19.5]} 28... Rc2 {[%clk 0:02:10.4]}
29. Ra3 {[%clk 0:01:15.7]} 29... Kf7 {[%clk 0:02:08.3]} 30. Rb3 {[%clk
0:01:15.9]} 30... Ke6 {[%clk 0:02:06.9]} 31. h4 {[%clk 0:01:02.8]} 31... g6
{[%clk 0:02:01.2]} 32. Ra3 {[%clk 0:00:45.4]} 32... Ke5 {[%clk 0:01:53.7]} 33.
Rb3 {[%clk 0:00:44.2]} 33... Rc1 {[%clk 0:01:50.8]} 34. Kf2 {[%clk 0:00:35.1]}
34... h5 {[%clk 0:01:37.9]} 35. gxh5 {[%clk 0:00:34.7]} 35... gxh5 {[%clk
0:01:38.2]} 36. Rb8 {[%clk 0:00:27.7]} 36... Rxc3 {[%clk 0:01:35.2]} 37. Rh8
{[%clk 0:00:27.7]} 37... Ke4 {[%clk 0:01:35.1]} 38. Rxh5 {[%clk 0:00:20.3]}
38... Rc2+ {[%clk 0:00:52.7]} 39. Kg3 {[%clk 0:00:20.4]} 39... f5 {[%clk
0:00:51.1]} 40. Rh6 {[%clk 0:00:18.7]} 40... Kxe3 {[%clk 0:00:50.4]} 41. Rxa6
{[%clk 0:00:13.5]} 41... f4+ {[%clk 0:00:48.8]} 42. Kg4 {[%clk 0:00:13.5]} 42...
Rg2+ {[%clk 0:00:47.9]} 43. Kh3 {[%clk 0:00:13.2]} 43... Rg8 {[%clk 0:00:45]}
44. Re6+ {[%clk 0:00:11.8]} 44... Kd4 {[%clk 0:00:44.6]} 45. Rf6 {[%clk
0:00:10.4]} 45... Ke5 {[%clk 0:00:42.7]} 46. Rf7 {[%clk 0:00:10.8]} 46... c5
{[%clk 0:00:42.7]} 47. h5 {[%clk 0:00:09.4]} 47... c4 {[%clk 0:00:35.7]} 48. h6
{[%clk 0:00:09]} 48... Rh8 {[%clk 0:00:32.5]} 49. h7 {[%clk 0:00:06.8]} 49... c3
{[%clk 0:00:32.6]} 50. Kg4 {[%clk 0:00:07]} 50... c2 {[%clk 0:00:29.7]} 51. Rc7
{[%clk 0:00:07.1]} 51... Rxh7 {[%clk 0:00:29]} 52. Rxc2 {[%clk 0:00:07]} 52...
Rg7+ {[%clk 0:00:28.8]} 53. Kf3 {[%clk 0:00:07.2]} 53... Rg3+ {[%clk 0:00:28.8]}
54. Kf2 {[%clk 0:00:07.8]} 54... Ra3 {[%clk 0:00:28.9]} 55. Rc4 {[%clk
0:00:06.6]} 55... Kf5 {[%clk 0:00:28.8]} 56. Rc5+ {[%clk 0:00:06.1]} 56... Kg4
{[%clk 0:00:28.8]} 57. a5 {[%clk 0:00:04.1]} 57... Ra2+ {[%clk 0:00:28.2]} 58.
Kf1 {[%clk 0:00:04]} 58... Kg3 {[%clk 0:00:28.8]} 59. a6 {[%clk 0:00:01.6]}
59... Rxa6 {[%clk 0:00:27.5]} 0-1

[Event "*** Titled Tuesday Blitz"]
[Site "Chess.com"]
[Date "2020.04.28"]
[Round "7"]
[White "BasilSmash"]
[Black "CarlosRBorn"]
[Result "0-1"]
[WhiteElo "2433"]
[BlackElo "2673"]
[TimeControl "180+1"]
[EndTime "11:19:03 PDT"]
[Termination "CarlosRBorn won on time"]

1. d4 {[%clk 0:02:55.6]} 1... Nf6 {[%clk 0:02:59.9]} 2. Nf3 {[%clk 0:02:55.6]}
2... e6 {[%clk 0:02:59.4]} 3. g3 {[%clk 0:02:55.6]} 3... b6 {[%clk 0:03:00]} 4.
Bg2 {[%clk 0:02:56.5]} 4... Bb7 {[%clk 0:03:00.9]} 5. O-O {[%clk 0:02:56.6]}
5... d6 {[%clk 0:03:01.4]} 6. c4 {[%clk 0:02:56.5]} 6... Nbd7 {[%clk 0:03:01.8]}
7. d5 {[%clk 0:02:50.4]} 7... e5 {[%clk 0:02:56.3]} 8. Nc3 {[%clk 0:02:49.4]}
8... Be7 {[%clk 0:02:55.4]} 9. e4 {[%clk 0:02:49.2]} 9... O-O {[%clk 0:02:55.2]}
10. Ne1 {[%clk 0:02:49.3]} 10... c6 {[%clk 0:02:55.6]} 11. Nd3 {[%clk
0:02:48.3]} 11... cxd5 {[%clk 0:02:55.6]} 12. cxd5 {[%clk 0:02:48.4]} 12... Rc8
{[%clk 0:02:53.8]} 13. Be3 {[%clk 0:02:47.8]} 13... Ba6 {[%clk 0:02:48.7]} 14.
Re1 {[%clk 0:02:40.9]} 14... Bxd3 {[%clk 0:02:48.7]} 15. Qxd3 {[%clk 0:02:40.5]}
15... Nc5 {[%clk 0:02:49.6]} 16. Qd2 {[%clk 0:02:37.6]} 16... Qd7 {[%clk
0:02:41.5]} 17. f3 {[%clk 0:02:32.7]} 17... Rc7 {[%clk 0:02:35.1]} 18. Bf1
{[%clk 0:02:30.5]} 18... a6 {[%clk 0:02:27.6]} 19. Rec1 {[%clk 0:02:11.6]} 19...
b5 {[%clk 0:02:27]} 20. b4 {[%clk 0:02:09.7]} 20... Nb7 {[%clk 0:02:17.8]} 21.
a4 {[%clk 0:02:08.5]} 21... bxa4 {[%clk 0:02:03.2]} 22. Bxa6 {[%clk 0:02:07.5]}
22... Ra8 {[%clk 0:01:56.7]} 23. Bb5 {[%clk 0:02:05.3]} 23... Qc8 {[%clk
0:01:54.7]} 24. Nxa4 {[%clk 0:02:00.3]} 24... Rxc1+ {[%clk 0:01:23.1]} 25. Rxc1
{[%clk 0:02:00.9]} 25... Qb8 {[%clk 0:01:23.5]} 26. Bc6 {[%clk 0:01:50.5]} 26...
Bd8 {[%clk 0:01:20.7]} 27. Nb6 {[%clk 0:01:31.2]} 27... Ra3 {[%clk 0:00:54.5]}
28. Nc4 {[%clk 0:01:16.2]} 28... Rb3 {[%clk 0:00:37.6]} 29. b5 {[%clk
0:01:09.7]} 29... h6 {[%clk 0:00:31.7]} 30. b6 {[%clk 0:00:42]} 30... Kh7 {[%clk
0:00:21.7]} 31. Qc2 {[%clk 0:00:36.8]} 31... Rxe3 {[%clk 0:00:20.7]} 32. Nxe3
{[%clk 0:00:37.7]} 32... Bxb6 {[%clk 0:00:21.1]} 33. Qb3 {[%clk 0:00:33.3]}
33... Qa7 {[%clk 0:00:20.2]} 34. Re1 {[%clk 0:00:17.9]} 34... Nc5 {[%clk
0:00:20.5]} 35. Qc3 {[%clk 0:00:10]} 35... Ncxe4 {[%clk 0:00:20.7]} 36. fxe4
{[%clk 0:00:09.7]} 36... Ng4 {[%clk 0:00:21.4]} 37. Kg2 {[%clk 0:00:05]} 37...
Nxe3+ {[%clk 0:00:20.4]} 38. Kh1 {[%clk 0:00:05.3]} 38... Bd4 {[%clk 0:00:20.8]}
39. Qd3 {[%clk 0:00:05]} 39... Qa2 {[%clk 0:00:20.8]} 40. Qe2 {[%clk 0:00:04.7]}
40... Qb3 {[%clk 0:00:20.4]} 41. Qf3 {[%clk 0:00:04.5]} 41... Qd3 {[%clk
0:00:20.7]} 42. Ra1 {[%clk 0:00:04.3]} 42... f6 {[%clk 0:00:20.4]} 43. Ra8
{[%clk 0:00:03.5]} 43... Qd2 {[%clk 0:00:20.6]} 44. Bd7 {[%clk 0:00:02.4]} 44...
Qe1+ {[%clk 0:00:21.1]} 0-1

[Event "*** Titled Tuesday Blitz"]
[Site "Chess.com"]
[Date "2020.04.28"]
[Round "7"]
[White "Leonid_Starozhilov"]
[Black "MartinMatthiesen"]
[Result "1-0"]
[WhiteElo "2610"]
[BlackElo "2470"]
[TimeControl "180+1"]
[EndTime "11:19:04 PDT"]
[Termination "Leonid_Starozhilov won by resignation"]

1. c4 {[%clk 0:03:00.9]} 1... c6 {[%clk 0:02:58.8]} 2. Nf3 {[%clk 0:03:00.4]}
2... d5 {[%clk 0:02:58.8]} 3. e3 {[%clk 0:03:00.4]} 3... Nf6 {[%clk 0:02:58.2]}
4. b3 {[%clk 0:03:00.7]} 4... Nbd7 {[%clk 0:02:53.6]} 5. Bb2 {[%clk 0:03:00.7]}
5... e6 {[%clk 0:02:53.8]} 6. Be2 {[%clk 0:02:55]} 6... Bd6 {[%clk 0:02:52.5]}
7. g4 {[%clk 0:02:55.3]} 7... Nxg4 {[%clk 0:02:38.3]} 8. Rg1 {[%clk 0:02:55.2]}
8... Nge5 {[%clk 0:02:36.1]} 9. Rxg7 {[%clk 0:02:32.4]} 9... Qf6 {[%clk
0:02:22]} 10. Nxe5 {[%clk 0:01:51.6]} 10... Qxg7 {[%clk 0:02:14.7]} 11. Nd3
{[%clk 0:01:30.1]} 11... Qg1+ {[%clk 0:02:11.5]} 12. Bf1 {[%clk 0:01:30.4]}
12... Rg8 {[%clk 0:02:10]} 13. Nc3 {[%clk 0:01:23.2]} 13... b6 {[%clk
0:01:23.4]} 14. Qc2 {[%clk 0:01:10]} 14... dxc4 {[%clk 0:01:12.3]} 15. bxc4
{[%clk 0:01:05.3]} 15... Qxh2 {[%clk 0:01:10.7]} 16. Ne4 {[%clk 0:00:58]} 16...
Be7 {[%clk 0:01:07]} 17. O-O-O {[%clk 0:00:55.7]} 17... Bb7 {[%clk 0:01:01.7]}
18. c5 {[%clk 0:00:49.3]} 18... Qc7 {[%clk 0:00:28.6]} 19. f4 {[%clk 0:00:43.7]}
19... O-O-O {[%clk 0:00:26.6]} 20. Be2 {[%clk 0:00:29.1]} 20... Kb8 {[%clk
0:00:26.4]} 21. Kb1 {[%clk 0:00:28.6]} 21... f5 {[%clk 0:00:25.8]} 22. Ng5
{[%clk 0:00:23.5]} 22... Bxg5 {[%clk 0:00:24.7]} 23. fxg5 {[%clk 0:00:24.4]}
23... Rxg5 {[%clk 0:00:22.5]} 24. Rc1 {[%clk 0:00:22.1]} 24... Ba6 {[%clk
0:00:20.2]} 25. Nf4 {[%clk 0:00:11]} 25... Bxe2 {[%clk 0:00:19.2]} 26. Nxe6
{[%clk 0:00:10.4]} 26... Qc8 {[%clk 0:00:17.8]} 27. Nxg5 {[%clk 0:00:08.9]}
27... Nxc5 {[%clk 0:00:16]} 28. Ka1 {[%clk 0:00:08.8]} 28... Bd3 {[%clk
0:00:15.6]} 29. Qc3 {[%clk 0:00:08.5]} 29... h6 {[%clk 0:00:16]} 30. Nf7 {[%clk
0:00:07.9]} 30... Rd7 {[%clk 0:00:14.7]} 31. Ne5 {[%clk 0:00:08.1]} 31... Rc7
{[%clk 0:00:15.1]} 32. Qb4 {[%clk 0:00:08.4]} 32... Be4 {[%clk 0:00:13.9]} 33.
Rxc5 {[%clk 0:00:08.1]} 33... Ka8 {[%clk 0:00:12.2]} 34. Rc1 {[%clk 0:00:08.1]}
34... c5 {[%clk 0:00:12.4]} 35. Qb3 {[%clk 0:00:08.7]} 35... Qb8 {[%clk
0:00:09.2]} 36. Nc4 {[%clk 0:00:07.1]} 36... Bd5 {[%clk 0:00:07.9]} 37. Be5
{[%clk 0:00:07.2]} 37... Qb7 {[%clk 0:00:07.1]} 38. Bxc7 {[%clk 0:00:07]} 38...
Qxc7 {[%clk 0:00:08]} 39. Qc3 {[%clk 0:00:07.1]} 39... Qd7 {[%clk 0:00:07.1]}
40. d3 {[%clk 0:00:06.9]} 40... Kb7 {[%clk 0:00:06.8]} 41. Kb2 {[%clk 0:00:07]}
41... Bc6 {[%clk 0:00:06.9]} 42. Ne5 {[%clk 0:00:07.3]} 42... Qd5 {[%clk
0:00:06.4]} 43. Nxc6 {[%clk 0:00:07.6]} 43... Qxc6 {[%clk 0:00:07.3]} 44. Rg1
{[%clk 0:00:07.3]} 44... Qb5+ {[%clk 0:00:07.4]} 45. Qb3 {[%clk 0:00:06.7]}
45... Qd7 {[%clk 0:00:06]} 46. Qc3 {[%clk 0:00:04.2]} 46... Qb5+ {[%clk
0:00:05.6]} 47. Ka1 {[%clk 0:00:04.8]} 47... Qa4 {[%clk 0:00:04.8]} 48. Rg7+
{[%clk 0:00:04.6]} 48... Ka6 {[%clk 0:00:05.1]} 49. Qc4+ {[%clk 0:00:04.9]} 1-0

[Event "*** Titled Tuesday Blitz"]
[Site "Chess.com"]
[Date "2020.04.28"]
[Round "7"]
[White "Bulldog167"]
[Black "Firegrizzly"]
[Result "1-0"]
[WhiteElo "2815"]
[BlackElo "2656"]
[TimeControl "180+1"]
[EndTime "11:19:05 PDT"]
[Termination "Bulldog167 won by checkmate"]

1. d4 {[%clk 0:03:00.9]} 1... Nf6 {[%clk 0:02:58.9]} 2. c4 {[%clk 0:03:01.3]}
2... g6 {[%clk 0:02:58.9]} 3. Nc3 {[%clk 0:03:01.3]} 3... Bg7 {[%clk 0:02:58.7]}
4. e4 {[%clk 0:03:01.6]} 4... d6 {[%clk 0:02:59.5]} 5. h3 {[%clk 0:03:01.5]}
5... O-O {[%clk 0:02:59]} 6. Be3 {[%clk 0:03:02]} 6... Na6 {[%clk 0:02:58.7]} 7.
g4 {[%clk 0:03:01.5]} 7... e5 {[%clk 0:02:57.9]} 8. d5 {[%clk 0:03:01.7]} 8...
Nd7 {[%clk 0:02:55.2]} 9. Nge2 {[%clk 0:03:00.4]} 9... Ndc5 {[%clk 0:02:54.6]}
10. Ng3 {[%clk 0:03:00.2]} 10... Qh4 {[%clk 0:02:53.2]} 11. Qd2 {[%clk 0:02:55]}
11... f6 {[%clk 0:02:52.5]} 12. Be2 {[%clk 0:02:50]} 12... Bd7 {[%clk
0:02:45.8]} 13. O-O-O {[%clk 0:02:49.5]} 13... Nb4 {[%clk 0:02:43.4]} 14. Kb1
{[%clk 0:02:45.6]} 14... a5 {[%clk 0:02:43.1]} 15. Rdg1 {[%clk 0:02:29.6]} 15...
Rfd8 {[%clk 0:02:32.5]} 16. f3 {[%clk 0:02:27.1]} 16... c6 {[%clk 0:02:29.8]}
17. dxc6 {[%clk 0:01:32]} 17... Bxc6 {[%clk 0:02:25.3]} 18. Nd5 {[%clk
0:01:30.7]} 18... Nxd5 {[%clk 0:02:21.7]} 19. exd5 {[%clk 0:01:14.6]} 19... Bd7
{[%clk 0:02:21.2]} 20. Bxc5 {[%clk 0:01:14.7]} 20... dxc5 {[%clk 0:02:20.6]} 21.
Ne4 {[%clk 0:01:15.1]} 21... b6 {[%clk 0:02:18.7]} 22. Qe1 {[%clk 0:01:08]}
22... Qxe1+ {[%clk 0:02:16.7]} 23. Rxe1 {[%clk 0:01:08.9]} 23... f5 {[%clk
0:02:15.1]} 24. gxf5 {[%clk 0:01:07.1]} 24... Bxf5 {[%clk 0:02:11.8]} 25. Bd3
{[%clk 0:01:04.6]} 25... Rf8 {[%clk 0:02:11.3]} 26. Kc2 {[%clk 0:01:02.2]} 26...
Rad8 {[%clk 0:02:04.8]} 27. Ref1 {[%clk 0:00:56.3]} 27... Bh6 {[%clk 0:02:01.5]}
28. h4 {[%clk 0:00:53.2]} 28... Be3 {[%clk 0:01:59]} 29. h5 {[%clk 0:00:52.8]}
29... gxh5 {[%clk 0:01:47.4]} 30. Rxh5 {[%clk 0:00:49.1]} 30... Bg6 {[%clk
0:01:46.7]} 31. Rxe5 {[%clk 0:00:49.1]} 31... Bd4 {[%clk 0:01:46.4]} 32. Re6
{[%clk 0:00:48.8]} 32... Rb8 {[%clk 0:01:42.2]} 33. Ng5 {[%clk 0:00:44.2]} 33...
Bxd3+ {[%clk 0:01:38.4]} 34. Kxd3 {[%clk 0:00:45.1]} 34... Rf5 {[%clk
0:01:37.5]} 35. f4 {[%clk 0:00:39.7]} 35... b5 {[%clk 0:01:32.5]} 36. cxb5
{[%clk 0:00:34.8]} 36... Rxd5 {[%clk 0:01:25.6]} 37. Kc4 {[%clk 0:00:34.5]}
37... Rd7 {[%clk 0:01:23.7]} 38. b3 {[%clk 0:00:30.5]} 38... Bg7 {[%clk
0:01:16.1]} 39. Ne4 {[%clk 0:00:22.3]} 39... Rd4+ {[%clk 0:01:12.7]} 40. Kxc5
{[%clk 0:00:22.8]} 40... Rc8+ {[%clk 0:01:12.6]} 41. Kb6 {[%clk 0:00:21.4]}
41... a4 {[%clk 0:01:11.6]} 42. Rg1 {[%clk 0:00:10.8]} 42... Rd7 {[%clk
0:01:02]} 43. Nf6+ {[%clk 0:00:10.3]} 43... Kf7 {[%clk 0:00:57.4]} 44. Nxd7
{[%clk 0:00:10.4]} 44... Bd4+ {[%clk 0:00:57.6]} 45. Kb7 {[%clk 0:00:07.5]}
45... Rc2 {[%clk 0:00:56.1]} 46. Re4 {[%clk 0:00:06.4]} 46... Bxg1 {[%clk
0:00:54.7]} 47. bxa4 {[%clk 0:00:06.5]} 47... Rxa2 {[%clk 0:00:51.9]} 48. b6
{[%clk 0:00:06.9]} 48... Rd2 {[%clk 0:00:48.3]} 49. Ne5+ {[%clk 0:00:06.6]}
49... Kf6 {[%clk 0:00:46.5]} 50. Nf3 {[%clk 0:00:07.2]} 50... Rd7+ {[%clk
0:00:41.3]} 51. Kc6 {[%clk 0:00:07.1]} 51... Rg7 {[%clk 0:00:42.2]} 52. Nxg1
{[%clk 0:00:06.8]} 52... Rxg1 {[%clk 0:00:42]} 53. b7 {[%clk 0:00:07.2]} 53...
Rb1 {[%clk 0:00:41.4]} 54. Re5 {[%clk 0:00:06.2]} 54... h5 {[%clk 0:00:30.2]}
55. Rxh5 {[%clk 0:00:06.2]} 55... Rb4 {[%clk 0:00:29.1]} 56. Rb5 {[%clk
0:00:06.2]} 56... Rxa4 {[%clk 0:00:29.6]} 57. b8=Q {[%clk 0:00:06.4]} 57... Re4
{[%clk 0:00:30.5]} 58. Qf8+ {[%clk 0:00:05.7]} 58... Kg6 {[%clk 0:00:29.9]} 59.
Rg5+ {[%clk 0:00:05.8]} 59... Kh7 {[%clk 0:00:29.2]} 60. Qg7# {[%clk 0:00:06.2]}
1-0

[Event "*** Titled Tuesday Blitz"]
[Site "Chess.com"]
[Date "2020.04.28"]
[Round "7"]
[White "kleopl"]
[Black "GMaka"]
[Result "0-1"]
[WhiteElo "2465"]
[BlackElo "2354"]
[TimeControl "180+1"]
[EndTime "11:19:05 PDT"]
[Termination "GMaka won by resignation"]

1. c4 {[%clk 0:03:00.9]} 1... e5 {[%clk 0:02:59.3]} 2. Nc3 {[%clk 0:03:00.2]}
2... Bb4 {[%clk 0:02:59.1]} 3. Nd5 {[%clk 0:02:59.8]} 3... Be7 {[%clk 0:02:59]}
4. Nf3 {[%clk 0:02:57]} 4... d6 {[%clk 0:02:57.2]} 5. d4 {[%clk 0:02:55.7]} 5...
c6 {[%clk 0:02:57.3]} 6. Nc3 {[%clk 0:02:55.3]} 6... Nd7 {[%clk 0:02:53.7]} 7.
e4 {[%clk 0:02:54]} 7... Ngf6 {[%clk 0:02:50.1]} 8. Be2 {[%clk 0:02:53.4]} 8...
O-O {[%clk 0:02:50.6]} 9. O-O {[%clk 0:02:53]} 9... b6 {[%clk 0:02:49.4]} 10.
Re1 {[%clk 0:02:51.7]} 10... Re8 {[%clk 0:02:43.3]} 11. h3 {[%clk 0:02:49.3]}
11... Bb7 {[%clk 0:02:42.6]} 12. d5 {[%clk 0:02:42.5]} 12... cxd5 {[%clk
0:02:41.4]} 13. cxd5 {[%clk 0:02:40.8]} 13... Nc5 {[%clk 0:02:36.8]} 14. Bd3
{[%clk 0:02:39.5]} 14... Nxd3 {[%clk 0:02:36]} 15. Qxd3 {[%clk 0:02:38.9]} 15...
Nd7 {[%clk 0:02:36.5]} 16. Rb1 {[%clk 0:02:22.2]} 16... Nc5 {[%clk 0:02:33]} 17.
Qc2 {[%clk 0:02:22.2]} 17... a5 {[%clk 0:02:33.5]} 18. a3 {[%clk 0:02:21.5]}
18... Ba6 {[%clk 0:02:32.6]} 19. Rd1 {[%clk 0:02:19.1]} 19... a4 {[%clk
0:02:29.4]} 20. Be3 {[%clk 0:02:15.5]} 20... Bc4 {[%clk 0:02:08.1]} 21. Qd2
{[%clk 0:01:31.4]} 21... Bb3 {[%clk 0:02:02.3]} 22. Re1 {[%clk 0:01:29]} 22...
Qd7 {[%clk 0:02:01.3]} 23. Bxc5 {[%clk 0:01:23.9]} 23... bxc5 {[%clk 0:02:01.3]}
24. Qd3 {[%clk 0:01:24.3]} 24... Reb8 {[%clk 0:02:00.3]} 25. Nd2 {[%clk
0:01:24.1]} 25... Bg5 {[%clk 0:01:55.4]} 26. Nxb3 {[%clk 0:01:23.5]} 26... Rxb3
{[%clk 0:01:54.2]} 27. Qc4 {[%clk 0:01:23.4]} 27... Bd2 {[%clk 0:01:49.3]} 28.
Red1 {[%clk 0:01:16.4]} 28... Bxc3 {[%clk 0:01:38.2]} 29. bxc3 {[%clk
0:01:17.3]} 29... Rab8 {[%clk 0:01:38.3]} 30. Rxb3 {[%clk 0:01:13.7]} 30... Rxb3
{[%clk 0:01:38.2]} 31. Ra1 {[%clk 0:01:12.4]} 31... g6 {[%clk 0:01:35.6]} 32.
Kf1 {[%clk 0:00:55.9]} 32... Qb5 {[%clk 0:01:30.2]} 33. Qxb5 {[%clk 0:00:55.1]}
33... Rxb5 {[%clk 0:01:31.1]} 34. Ke2 {[%clk 0:00:55.5]} 34... Rb2+ {[%clk
0:01:30.9]} 35. Kd3 {[%clk 0:00:47.4]} 35... Rxf2 {[%clk 0:01:29.9]} 36. Kc4
{[%clk 0:00:47.8]} 36... Rb2 {[%clk 0:01:27.9]} 37. g4 {[%clk 0:00:44.2]} 37...
h6 {[%clk 0:01:14.1]} 38. h4 {[%clk 0:00:43.4]} 38... Kf8 {[%clk 0:01:08.4]} 39.
g5 {[%clk 0:00:42.5]} 39... h5 {[%clk 0:01:06.9]} 40. Rf1 {[%clk 0:00:36.3]}
40... Ke7 {[%clk 0:01:06.2]} 41. Ra1 {[%clk 0:00:35.5]} 41... Ke8 {[%clk
0:01:01.2]} 42. Rf1 {[%clk 0:00:24.8]} 42... Ke7 {[%clk 0:00:57.7]} 43. Ra1
{[%clk 0:00:24.8]} 43... Re2 {[%clk 0:00:53.8]} 44. Kb5 {[%clk 0:00:24.4]} 44...
Rxe4 {[%clk 0:00:53.5]} 45. c4 {[%clk 0:00:23.9]} 45... Rxh4 {[%clk 0:00:52.2]}
46. Rc1 {[%clk 0:00:23.7]} 46... Rh2 {[%clk 0:00:37.8]} 47. Kxa4 {[%clk
0:00:23.6]} 47... Rb2 {[%clk 0:00:38.2]} 48. Rh1 {[%clk 0:00:19.7]} 48... f6
{[%clk 0:00:37.5]} 49. gxf6+ {[%clk 0:00:18.2]} 49... Kxf6 {[%clk 0:00:38.4]}
50. Rf1+ {[%clk 0:00:18]} 50... Kg7 {[%clk 0:00:38.5]} 51. Ka5 {[%clk
0:00:16.7]} 51... h4 {[%clk 0:00:38.4]} 52. Rh1 {[%clk 0:00:16.1]} 52... g5
{[%clk 0:00:37.9]} 53. a4 {[%clk 0:00:16.7]} 53... Kg6 {[%clk 0:00:36.7]} 54.
Ka6 {[%clk 0:00:17.2]} 54... Kh5 {[%clk 0:00:36.9]} 55. a5 {[%clk 0:00:17]}
55... g4 {[%clk 0:00:36.6]} 56. Ka7 {[%clk 0:00:17.4]} 56... h3 {[%clk
0:00:35.8]} 57. a6 {[%clk 0:00:17.7]} 57... Kh4 {[%clk 0:00:34.9]} 58. Ka8
{[%clk 0:00:18.1]} 58... g3 {[%clk 0:00:34.6]} 59. a7 {[%clk 0:00:18.5]} 59...
Ra2 {[%clk 0:00:34.9]} 60. Kb7 {[%clk 0:00:16.1]} 60... g2 {[%clk 0:00:33.8]}
61. Re1 {[%clk 0:00:15]} 61... Rxa7+ {[%clk 0:00:33]} 62. Kxa7 {[%clk
0:00:14.7]} 62... h2 {[%clk 0:00:33.1]} 63. Kb6 {[%clk 0:00:14.2]} 63... g1=Q
{[%clk 0:00:32.5]} 0-1

[Event "*** Titled Tuesday Blitz"]
[Site "Chess.com"]
[Date "2020.04.28"]
[Round "7"]
[White "ParvizGasimov"]
[Black "chenxiaoyuer"]
[Result "0-1"]
[WhiteElo "2302"]
[BlackElo "2156"]
[TimeControl "180+1"]
[EndTime "11:19:05 PDT"]
[Termination "chenxiaoyuer won on time"]

1. e4 {[%clk 0:03:00.9]} 1... c5 {[%clk 0:02:59.6]} 2. Nf3 {[%clk 0:02:58.5]}
2... d6 {[%clk 0:02:59.4]} 3. d4 {[%clk 0:02:58.1]} 3... cxd4 {[%clk 0:03:00.3]}
4. Nxd4 {[%clk 0:02:58.6]} 4... Nf6 {[%clk 0:03:00.8]} 5. Nc3 {[%clk 0:02:58.9]}
5... Nc6 {[%clk 0:03:01]} 6. f3 {[%clk 0:02:57.5]} 6... e5 {[%clk 0:03:00.2]} 7.
Nb3 {[%clk 0:02:56.6]} 7... Be7 {[%clk 0:03:00.3]} 8. Be3 {[%clk 0:02:56.9]}
8... O-O {[%clk 0:03:00.5]} 9. Qd2 {[%clk 0:02:57.4]} 9... Be6 {[%clk
0:03:00.7]} 10. Nd5 {[%clk 0:02:54.2]} 10... Bxd5 {[%clk 0:02:38]} 11. exd5
{[%clk 0:02:55.1]} 11... Nb8 {[%clk 0:02:37.6]} 12. g4 {[%clk 0:02:40.6]} 12...
Nbd7 {[%clk 0:02:32.8]} 13. O-O-O {[%clk 0:02:37.5]} 13... Qc7 {[%clk
0:02:23.7]} 14. g5 {[%clk 0:02:21.2]} 14... Nh5 {[%clk 0:02:18.2]} 15. Bd3
{[%clk 0:02:21.3]} 15... Nb6 {[%clk 0:02:10]} 16. Qb4 {[%clk 0:02:04.3]} 16...
f5 {[%clk 0:01:34.9]} 17. a4 {[%clk 0:01:54.4]} 17... Kh8 {[%clk 0:01:07.9]} 18.
Be2 {[%clk 0:01:35]} 18... Rfc8 {[%clk 0:00:55.4]} 19. c3 {[%clk 0:01:26.1]}
19... Qd8 {[%clk 0:00:44.5]} 20. h4 {[%clk 0:01:14.9]} 20... Ng3 {[%clk
0:00:40]} 21. Rhe1 {[%clk 0:01:13.5]} 21... Nxe2+ {[%clk 0:00:35.1]} 22. Rxe2
{[%clk 0:01:14.4]} 22... Qd7 {[%clk 0:00:25.5]} 23. a5 {[%clk 0:00:32.8]} 23...
Rc4 {[%clk 0:00:20]} 24. axb6 {[%clk 0:00:18.7]} 24... Rxb4 {[%clk 0:00:19.7]}
25. cxb4 {[%clk 0:00:19.2]} 25... axb6 {[%clk 0:00:19.8]} 26. Rc2 {[%clk
0:00:18.9]} 26... Rc8 {[%clk 0:00:19.3]} 27. Rd2 {[%clk 0:00:17.2]} 27... f4
{[%clk 0:00:17.1]} 28. Bxb6 {[%clk 0:00:15.8]} 28... Rxc2+ {[%clk 0:00:15.1]}
29. Rxc2 {[%clk 0:00:15.2]} 29... g6 {[%clk 0:00:13.6]} 30. Na5 {[%clk
0:00:12.6]} 30... Qb5 {[%clk 0:00:12]} 31. Rc8+ {[%clk 0:00:07.2]} 31... Kg7
{[%clk 0:00:11.7]} 32. Rc7 {[%clk 0:00:04.5]} 32... Qxb6 {[%clk 0:00:11.2]} 33.
Rxe7+ {[%clk 0:00:04.8]} 33... Kf8 {[%clk 0:00:10.7]} 34. Rxb7 {[%clk
0:00:05.7]} 34... Qe3+ {[%clk 0:00:10.2]} 35. Kb1 {[%clk 0:00:05.7]} 35... Qd3+
{[%clk 0:00:09.9]} 36. Kc1 {[%clk 0:00:04.5]} 36... Qxd5 {[%clk 0:00:09.3]} 37.
b5 {[%clk 0:00:04.5]} 37... Qxf3 {[%clk 0:00:09.2]} 38. b6 {[%clk 0:00:04.2]}
38... Qe3+ {[%clk 0:00:08.6]} 39. Kc2 {[%clk 0:00:04]} 39... Qe2+ {[%clk
0:00:08.6]} 40. Kb1 {[%clk 0:00:03.8]} 40... Qe1+ {[%clk 0:00:08.6]} 41. Ka2
{[%clk 0:00:04]} 41... Qxa5+ {[%clk 0:00:09.1]} 42. Kb1 {[%clk 0:00:04.3]} 42...
Qe1+ {[%clk 0:00:09.3]} 43. Ka2 {[%clk 0:00:03.8]} 43... Qe4 {[%clk 0:00:08.3]}
44. Rc7 {[%clk 0:00:01.3]} 44... Qa4+ {[%clk 0:00:08.1]} 45. Kb1 {[%clk
0:00:01.4]} 45... Qd1+ {[%clk 0:00:07.6]} 46. Ka2 {[%clk 0:00:01.2]} 46... Qd5+
{[%clk 0:00:07.3]} 47. Kb1 {[%clk 0:00:01]} 47... Qe4+ {[%clk 0:00:04.6]} 0-1